[Event "Open Nuevo Centro. Jornada 1"]
[Site "Chess.com"]
[Date "2020.06.19"]
[Round "9"]
[White "Lopez Mateo, Juan Carlos"]
[Black "Bendayan Claros, Aaron"]
[Result "0-1"]
[WhiteElo "1943"]
[BlackElo "1811"]
[TimeControl "180+2"]
[EndTime "12:15:23 PDT"]
[Termination "Victoria de Cuajada_Zero por tiempo"]

1. e4 {[%clk 0:03:01.9]} 1... c6 {[%clk 0:03:00.7]} 2. Ne2 {[%clk 0:03:02.4]}
2... d5 {[%clk 0:03:02.6]} 3. e5 {[%clk 0:03:02.7]} 3... Bf5 {[%clk 0:03:03.6]}
4. Ng3 {[%clk 0:03:04]} 4... Bg6 {[%clk 0:03:03.6]} 5. h4 {[%clk 0:03:04.8]}
5... h5 {[%clk 0:03:01.6]} 6. e6 {[%clk 0:03:02.2]} 6... Qd6 {[%clk 0:03:02.1]}
7. exf7+ {[%clk 0:02:51.4]} 7... Bxf7 {[%clk 0:03:04]} 8. d4 {[%clk 0:02:48.7]}
8... e5 {[%clk 0:02:54.6]} 9. dxe5 {[%clk 0:02:45.4]} 9... Qxe5+ {[%clk
0:02:55.1]} 10. Be2 {[%clk 0:02:44.8]} 10... Nd7 {[%clk 0:02:53.2]} 11. Nd2
{[%clk 0:02:41.6]} 11... O-O-O {[%clk 0:02:42.2]} 12. Nf3 {[%clk 0:02:35.9]}
12... Qc7 {[%clk 0:02:43.2]} 13. O-O {[%clk 0:02:26.4]} 13... Ngf6 {[%clk
0:02:41]} 14. Ng5 {[%clk 0:02:24.1]} 14... Ne5 {[%clk 0:02:25.7]} 15. a4 {[%clk
0:02:16.1]} 15... Bd6 {[%clk 0:02:25.3]} 16. Nf5 {[%clk 0:02:13.8]} 16... Ne4
{[%clk 0:01:10.7]} 17. Nxd6+ {[%clk 0:01:38.9]} 17... Nxd6 {[%clk 0:01:00.5]}
18. Bf4 {[%clk 0:01:32.3]} 18... Rde8 {[%clk 0:00:52.8]} 19. Re1 {[%clk
0:00:58.8]} 19... Bg6 {[%clk 0:00:47.1]} 20. Qd4 {[%clk 0:00:52.6]} 20... Nf5
{[%clk 0:00:38.2]} 21. Qxa7 {[%clk 0:00:48.7]} 21... Nf3+ {[%clk 0:00:26.1]} 22.
Nxf3 {[%clk 0:00:28.2]} 22... Qxf4 {[%clk 0:00:28]} 23. Bd3 {[%clk 0:00:16.9]}
23... Nxh4 {[%clk 0:00:29.9]} 24. Nxh4 {[%clk 0:00:11.7]} 24... Qxh4 {[%clk
0:00:31.8]} 25. Bxg6 {[%clk 0:00:10.7]} 25... Ref8 {[%clk 0:00:18.1]} 26. Qa8+
{[%clk 0:00:10.8]} 26... Kc7 {[%clk 0:00:18.5]} 27. Qa5+ {[%clk 0:00:12.3]}
27... Kc8 {[%clk 0:00:18.8]} 28. Qd2 {[%clk 0:00:07.6]} 28... Qf6 {[%clk
0:00:13.7]} 29. Bd3 {[%clk 0:00:07.5]} 29... h4 {[%clk 0:00:14.2]} 30. Re3
{[%clk 0:00:05.2]} 30... g5 {[%clk 0:00:12.6]} 31. Rf3 {[%clk 0:00:05.6]} 31...
Qxb2 {[%clk 0:00:13]} 32. Re1 {[%clk 0:00:04.8]} 32... Rxf3 {[%clk 0:00:12.5]}
33. gxf3 {[%clk 0:00:05.6]} 33... Qf6 {[%clk 0:00:11.2]} 34. Qe3 {[%clk
0:00:06.1]} 34... Kb8 {[%clk 0:00:08.4]} 35. Qe5+ {[%clk 0:00:05.8]} 35... Qxe5
{[%clk 0:00:09.2]} 36. Rxe5 {[%clk 0:00:07.3]} 36... Rg8 {[%clk 0:00:11.1]} 37.
Kh2 {[%clk 0:00:06.9]} 37... g4 {[%clk 0:00:11.3]} 38. f4 {[%clk 0:00:04.3]}
38... g3+ {[%clk 0:00:10.4]} 39. fxg3 {[%clk 0:00:05.4]} 39... Rxg3 {[%clk
0:00:08.9]} 40. f5 {[%clk 0:00:05.3]} 40... Rf3 {[%clk 0:00:08.3]} 41. Re7
{[%clk 0:00:05.3]} 41... Ka7 {[%clk 0:00:08.6]} 42. a5 {[%clk 0:00:04.2]} 42...
c5 {[%clk 0:00:07.9]} 43. a6 {[%clk 0:00:04]} 43... c4 {[%clk 0:00:08.4]} 0

[Event "Open Nuevo Centro. Jornada 1"]
[Site "Chess.com"]
[Date "2020.06.19"]
[Round "9"]
[White "Garcia Trobat, Francisco"]
[Black "Macias Pino, Diego"]
[Result "0-1"]
[WhiteElo "2207"]
[BlackElo "2193"]
[TimeControl "180+2"]
[EndTime "12:15:24 PDT"]
[Termination "Victoria de jesuimafe por jaque mate"]

1. e4 {[%clk 0:03:01.9]} 1... c6 {[%clk 0:03:00.7]} 2. d3 {[%clk 0:03:00.5]}
2... d5 {[%clk 0:03:02.6]} 3. Nd2 {[%clk 0:03:01.6]} 3... e5 {[%clk 0:02:49.5]}
4. Ngf3 {[%clk 0:03:02.6]} 4... Bd6 {[%clk 0:02:49.8]} 5. Be2 {[%clk 0:03:00.7]}
5... Nf6 {[%clk 0:02:49.5]} 6. O-O {[%clk 0:03:01.5]} 6... O-O {[%clk
0:02:48.1]} 7. c3 {[%clk 0:03:02.5]} 7... Be6 {[%clk 0:02:44.8]} 8. Qc2 {[%clk
0:03:02.4]} 8... Nbd7 {[%clk 0:02:45.2]} 9. b3 {[%clk 0:03:02.7]} 9... Qc7
{[%clk 0:02:41.5]} 10. Bb2 {[%clk 0:03:03]} 10... Rad8 {[%clk 0:02:35.7]} 11.
Rfe1 {[%clk 0:03:03.4]} 11... Rfe8 {[%clk 0:02:35.9]} 12. a3 {[%clk 0:03:04.4]}
12... Nh5 {[%clk 0:02:32]} 13. Bf1 {[%clk 0:02:57.2]} 13... h6 {[%clk
0:02:28.8]} 14. b4 {[%clk 0:02:56.9]} 14... a5 {[%clk 0:02:23]} 15. g3 {[%clk
0:02:42.7]} 15... g5 {[%clk 0:02:14.4]} 16. Bg2 {[%clk 0:02:36.8]} 16... Nhf6
{[%clk 0:01:49.4]} 17. Nf1 {[%clk 0:02:30.7]} 17... axb4 {[%clk 0:01:41.6]} 18.
cxb4 {[%clk 0:02:22.8]} 18... dxe4 {[%clk 0:01:24.7]} 19. dxe4 {[%clk
0:02:20.4]} 19... Nb6 {[%clk 0:01:23.7]} 20. Ne3 {[%clk 0:02:18.1]} 20... Ra8
{[%clk 0:01:19.7]} 21. Nf5 {[%clk 0:02:13.4]} 21... Bxf5 {[%clk 0:01:14.9]} 22.
exf5 {[%clk 0:02:13.6]} 22... Nfd5 {[%clk 0:01:09]} 23. f6 {[%clk 0:02:04]}
23... Nxf6 {[%clk 0:01:05.9]} 24. Qf5 {[%clk 0:02:04.7]} 24... Nfd7 {[%clk
0:00:40.5]} 25. Nxg5 {[%clk 0:01:52.4]} 25... hxg5 {[%clk 0:00:34.8]} 26. Qxg5+
{[%clk 0:01:53.1]} 26... Kf8 {[%clk 0:00:33.8]} 27. Re4 {[%clk 0:01:38.2]} 27...
Re6 {[%clk 0:00:32.7]} 28. Rh4 {[%clk 0:01:36.4]} 28... Rg6 {[%clk 0:00:33]} 29.
Qf5 {[%clk 0:01:08.9]} 29... Nf6 {[%clk 0:00:30.4]} 30. f4 {[%clk 0:00:56.8]}
30... Qd7 {[%clk 0:00:25.4]} 31. Qc2 {[%clk 0:00:44.4]} 31... exf4 {[%clk
0:00:21.5]} 32. Rd1 {[%clk 0:00:42.1]} 32... fxg3 {[%clk 0:00:20.8]} 33. h3
{[%clk 0:00:39.8]} 33... Rd8 {[%clk 0:00:19]} 34. Rh8+ {[%clk 0:00:32.6]} 34...
Ng8 {[%clk 0:00:19.2]} 35. Bf3 {[%clk 0:00:23.5]} 35... Bc5+ {[%clk 0:00:19.8]}
36. bxc5 {[%clk 0:00:24.2]} 36... Nd5 {[%clk 0:00:21]} 37. Bxd5 {[%clk
0:00:22.5]} 37... cxd5 {[%clk 0:00:22.9]} 38. Kg2 {[%clk 0:00:22.8]} 38... Qc6
{[%clk 0:00:19.3]} 39. Rd4 {[%clk 0:00:22.5]} 39... Qe6 {[%clk 0:00:19.7]} 40.
Qd2 {[%clk 0:00:21.9]} 40... Re8 {[%clk 0:00:20.5]} 41. Rf4 {[%clk 0:00:20.8]}
41... Qe2+ {[%clk 0:00:21.4]} 42. Qxe2 {[%clk 0:00:20.9]} 42... Rxe2+ {[%clk
0:00:23.3]} 43. Kf3 {[%clk 0:00:22.1]} 43... Rxb2 {[%clk 0:00:25.2]} 44. Rh7
{[%clk 0:00:22.4]} 44... Rf2+ {[%clk 0:00:26.1]} 45. Ke3 {[%clk 0:00:22.4]}
45... Rxf4 {[%clk 0:00:28]} 46. Kxf4 {[%clk 0:00:23.8]} 46... g2 {[%clk
0:00:29.6]} 47. Rh5 {[%clk 0:00:24.6]} 47... g1=Q {[%clk 0:00:30.7]} 48. Rxd5
{[%clk 0:00:25.9]} 48... Qg3+ {[%clk 0:00:30.4]} 49. Kf5 {[%clk 0:00:26.4]}
49... Rg5+ {[%clk 0:00:30.6]} 50. Ke4 {[%clk 0:00:26]} 50... Nf6+ {[%clk
0:00:31.7]} 51. Kd4 {[%clk 0:00:26.1]} 51... Rxd5+ {[%clk 0:00:33.6]} 52. Kc4
{[%clk 0:00:26.8]} 52... Qd3+ {[%clk 0:00:34.1]} 53. Kb4 {[%clk 0:00:28]} 53...
b6 {[%clk 0:00:35.5]} 54. cxb6 {[%clk 0:00:27.5]} 54... Rb5+ {[%clk 0:00:37.4]}
55. Ka4 {[%clk 0:00:27.9]} 55... Qb3# {[%clk 0:00:39.3]} 0

[Event "Open Nuevo Centro. Jornada 1"]
[Site "Chess.com"]
[Date "2020.06.19"]
[Round "9"]
[White "Gerona Maura, Jesus"]
[Black "Castellano L�pez, Javier"]
[Result "0-1"]
[WhiteElo "1542"]
[BlackElo "1779"]
[TimeControl "180+2"]
[EndTime "12:15:33 PDT"]
[Termination "Victoria de its_xavi_official por abandono"]

1. e4 {[%clk 0:02:53.7]} 1... c6 {[%clk 0:02:58.5]} 2. d4 {[%clk 0:02:53.7]}
2... d5 {[%clk 0:02:59.4]} 3. Nc3 {[%clk 0:02:54.5]} 3... dxe4 {[%clk
0:02:59.4]} 4. Nxe4 {[%clk 0:02:55.5]} 4... Bf5 {[%clk 0:03:00.7]} 5. Bd3 {[%clk
0:02:55.3]} 5... e6 {[%clk 0:02:56.9]} 6. Nf3 {[%clk 0:02:53]} 6... Nf6 {[%clk
0:02:54.4]} 7. Qe2 {[%clk 0:02:52]} 7... Bg6 {[%clk 0:02:41.8]} 8. Ne5 {[%clk
0:02:48.5]} 8... Nbd7 {[%clk 0:02:39.7]} 9. Nxg6 {[%clk 0:02:45.6]} 9... hxg6
{[%clk 0:02:41.6]} 10. c3 {[%clk 0:02:45.4]} 10... Nxe4 {[%clk 0:02:42.5]} 11.
Bxe4 {[%clk 0:02:43.5]} 11... Bd6 {[%clk 0:02:41.3]} 12. Bd2 {[%clk 0:02:26.2]}
12... Nf6 {[%clk 0:02:37.3]} 13. Bd3 {[%clk 0:02:18.1]} 13... Qc7 {[%clk
0:02:26.6]} 14. O-O-O {[%clk 0:02:06.9]} 14... O-O-O {[%clk 0:02:11.2]} 15. h3
{[%clk 0:01:49.7]} 15... Nd5 {[%clk 0:02:00.4]} 16. g3 {[%clk 0:01:45.2]} 16...
c5 {[%clk 0:01:39.9]} 17. Bxg6 {[%clk 0:01:41.4]} 17... cxd4 {[%clk 0:01:33.1]}
18. c4 {[%clk 0:01:10.9]} 18... Be5 {[%clk 0:01:06.3]} 19. Kb1 {[%clk
0:01:04.5]} 19... Nb6 {[%clk 0:00:37.9]} 20. c5 {[%clk 0:00:57.3]} 20... Nd5
{[%clk 0:00:36.7]} 21. Be4 {[%clk 0:00:54.2]} 21... Kb8 {[%clk 0:00:34.6]} 22.
Qb5 {[%clk 0:00:45.1]} 22... a6 {[%clk 0:00:23.5]} 23. Qd3 {[%clk 0:00:44.9]}
23... Qxc5 {[%clk 0:00:21.4]} 24. Rc1 {[%clk 0:00:45.1]} 24... Qb6 {[%clk
0:00:21.8]} 25. Rhe1 {[%clk 0:00:38.9]} 25... Bf6 {[%clk 0:00:22.4]} 26. Bxd5
{[%clk 0:00:36.9]} 26... Rxd5 {[%clk 0:00:23]} 27. Bf4+ {[%clk 0:00:36]} 27...
Ka8 {[%clk 0:00:23.1]} 28. Bc7 {[%clk 0:00:33]} 28... Qb5 {[%clk 0:00:20.3]} 29.
Qxb5 {[%clk 0:00:33]} 29... Rxb5 {[%clk 0:00:22.2]} 30. b3 {[%clk 0:00:19.9]}
30... Rxh3 {[%clk 0:00:21.1]} 31. Bf4 {[%clk 0:00:14]} 31... Rh8 {[%clk
0:00:18.7]} 32. Rc7 {[%clk 0:00:11.4]} 32... e5 {[%clk 0:00:16.5]} 33. Bd2
{[%clk 0:00:09.3]} 33... Rf8 {[%clk 0:00:14.2]} 34. Rec1 {[%clk 0:00:08.7]}
34... Rb6 {[%clk 0:00:09.4]} 35. Rc8+ {[%clk 0:00:09.3]} 35... Rxc8 {[%clk
0:00:09.7]} 36. Rxc8+ {[%clk 0:00:10.8]} 36... Ka7 {[%clk 0:00:11]} 37. Ba5
{[%clk 0:00:10.8]} 37... Rc6 {[%clk 0:00:09.9]} 38. Rd8 {[%clk 0:00:11.5]} 38...
Bxd8 {[%clk 0:00:06.4]} 39. Bxd8 {[%clk 0:00:10.1]} 39... f5 {[%clk 0:00:07.2]}
40. Bg5 {[%clk 0:00:08.4]} 40... e4 {[%clk 0:00:07.9]} 41. Bd2 {[%clk
0:00:05.3]} 41... Rd6 {[%clk 0:00:06.3]} 42. g4 {[%clk 0:00:04.8]} 42... fxg4
{[%clk 0:00:06.7]} 43. Kc1 {[%clk 0:00:06.1]} 43... g3 {[%clk 0:00:07.6]} 44.
fxg3 {[%clk 0:00:05.6]} 44... e3 {[%clk 0:00:09]} 45. Be1 {[%clk 0:00:06.4]}
45... d3 {[%clk 0:00:09.3]} 46. Kd1 {[%clk 0:00:07]} 46... d2 {[%clk 0:00:09]}
47. Bxd2 {[%clk 0:00:06.4]} 47... Rxd2+ {[%clk 0:00:09.7]} 48. Ke1 {[%clk
0:00:07.4]} 48... Rxa2 {[%clk 0:00:11.2]} 0

[Event "Open Nuevo Centro. Jornada 1"]
[Site "Chess.com"]
[Date "2020.06.19"]
[Round "9"]
[White "Chernikov, Vladimir"]
[Black "Clement G�mez, Jos� Antonio"]
[Result "1/2-1/2"]
[WhiteElo "2252"]
[BlackElo "2483"]
[TimeControl "180+2"]
[EndTime "12:15:54 PDT"]
[Termination "Tablas por repetición de movimientos"]

1. b3 {[%clk 0:03:01.9]} 1... Nf6 {[%clk 0:02:58.2]} 2. Bb2 {[%clk 0:03:03.1]}
2... g6 {[%clk 0:03:00.1]} 3. Bxf6 {[%clk 0:03:03.8]} 3... exf6 {[%clk 0:03:02]}
4. c4 {[%clk 0:03:04.3]} 4... Bg7 {[%clk 0:03:01.5]} 5. Nc3 {[%clk 0:03:05.2]}
5... f5 {[%clk 0:03:02.8]} 6. Rc1 {[%clk 0:03:05.7]} 6... O-O {[%clk 0:03:02.9]}
7. g3 {[%clk 0:03:07.2]} 7... d6 {[%clk 0:03:04.2]} 8. Bg2 {[%clk 0:03:07.9]}
8... c6 {[%clk 0:03:06.1]} 9. e3 {[%clk 0:03:09.2]} 9... Nd7 {[%clk 0:03:07.4]}
10. Nge2 {[%clk 0:03:10.3]} 10... Nf6 {[%clk 0:03:08.9]} 11. O-O {[%clk
0:03:10.9]} 11... Re8 {[%clk 0:03:10.4]} 12. d4 {[%clk 0:03:11.8]} 12... h5
{[%clk 0:03:11.9]} 13. h4 {[%clk 0:03:11.3]} 13... Qe7 {[%clk 0:03:10.9]} 14.
Qd3 {[%clk 0:03:11.6]} 14... Bh6 {[%clk 0:03:11.1]} 15. b4 {[%clk 0:03:06.2]}
15... Ng4 {[%clk 0:03:11.3]} 16. Nf4 {[%clk 0:03:01.3]} 16... Bd7 {[%clk
0:03:09.1]} 17. b5 {[%clk 0:03:01.7]} 17... Rac8 {[%clk 0:03:09.4]} 18. bxc6
{[%clk 0:03:00.1]} 18... bxc6 {[%clk 0:03:11.3]} 19. Rb1 {[%clk 0:03:00.7]}
19... Rc7 {[%clk 0:02:57.4]} 20. Rfe1 {[%clk 0:02:28.9]} 20... Qd8 {[%clk
0:02:55.5]} 21. Re2 {[%clk 0:02:04.2]} 21... Qc8 {[%clk 0:02:31.7]} 22. Reb2
{[%clk 0:02:01.3]} 22... Qa6 {[%clk 0:02:29.3]} 23. c5 {[%clk 0:01:42]} 23...
Qxd3 {[%clk 0:02:31.2]} 24. Nxd3 {[%clk 0:01:43]} 24... d5 {[%clk 0:02:21.3]}
25. Rb7 {[%clk 0:01:37.9]} 25... Rec8 {[%clk 0:02:20.4]} 26. Rxc7 {[%clk
0:01:14.4]} 26... Rxc7 {[%clk 0:02:22.3]} 27. Bxd5 {[%clk 0:01:15.1]} 27... Nxe3
{[%clk 0:02:10.4]} 28. fxe3 {[%clk 0:01:05]} 28... Bxe3+ {[%clk 0:02:12.3]} 29.
Kg2 {[%clk 0:00:56.9]} 29... Bxd4 {[%clk 0:02:14.2]} 30. Ne2 {[%clk 0:00:45.3]}
30... Bf6 {[%clk 0:02:01]} 31. Rb8+ {[%clk 0:00:44.8]} 31... Kg7 {[%clk
0:02:01.3]} 32. Bb3 {[%clk 0:00:42.8]} 32... Be6 {[%clk 0:01:56.7]} 33. Bxe6
{[%clk 0:00:28.1]} 33... fxe6 {[%clk 0:01:58.6]} 34. Nb4 {[%clk 0:00:28.5]}
34... e5 {[%clk 0:01:53.8]} 35. a4 {[%clk 0:00:26.4]} 35... g5 {[%clk
0:01:52.1]} 36. hxg5 {[%clk 0:00:22.4]} 36... Bxg5 {[%clk 0:01:54]} 37. a5
{[%clk 0:00:23.7]} 37... h4 {[%clk 0:01:46.2]} 38. a6 {[%clk 0:00:22.1]} 38...
Kf6 {[%clk 0:01:38.3]} 39. Rb7 {[%clk 0:00:21.2]} 39... Rc8 {[%clk 0:01:38.3]}
40. Rxa7 {[%clk 0:00:19.6]} 40... e4 {[%clk 0:01:27.1]} 41. Rd7 {[%clk
0:00:18.3]} 41... hxg3 {[%clk 0:01:17.9]} 42. Nxg3 {[%clk 0:00:18.6]} 42... Bf4
{[%clk 0:01:17.4]} 43. a7 {[%clk 0:00:13.7]} 43... Be3 {[%clk 0:01:10.2]} 44.
Nxc6 {[%clk 0:00:12.8]} 44... Bxc5 {[%clk 0:01:08.4]} 45. Nb8 {[%clk 0:00:11.1]}
45... Bxa7 {[%clk 0:01:08.3]} 46. Rxa7 {[%clk 0:00:10.8]} 46... Rxb8 {[%clk
0:01:08.8]} 47. Ra6+ {[%clk 0:00:11.9]} 47... Kg5 {[%clk 0:01:09.4]} 48. Ra5
{[%clk 0:00:12.8]} 48... Rb2+ {[%clk 0:01:10]} 49. Kh3 {[%clk 0:00:13.6]} 49...
Kf4 {[%clk 0:01:01.4]} 50. Rxf5+ {[%clk 0:00:13.8]} 50... Ke3 {[%clk 0:01:01.7]}
51. Re5 {[%clk 0:00:14.8]} 51... Rb4 {[%clk 0:01:02.1]} 52. Kg4 {[%clk 0:00:15]}
52... Kd3 {[%clk 0:00:59.9]} 53. Rd5+ {[%clk 0:00:10.4]} 53... Ke3 {[%clk
0:00:57.2]} 54. Nf5+ {[%clk 0:00:10.7]} 54... Ke2 {[%clk 0:00:54.7]} 55. Kf4
{[%clk 0:00:11.5]} 55... e3+ {[%clk 0:00:53.4]} 56. Kg3 {[%clk 0:00:11.2]} 56...
Rb8 {[%clk 0:00:47.1]} 57. Nd4+ {[%clk 0:00:11.1]} 57... Ke1 {[%clk 0:00:43.7]}
58. Nf3+ {[%clk 0:00:12]} 58... Ke2 {[%clk 0:00:44]} 59. Nd4+ {[%clk 0:00:07.7]}
59... Ke1 {[%clk 0:00:44.7]} 60. Nf3+ {[%clk 0:00:07.3]} 60... Ke2 {[%clk
0:00:45.7]} 61. Nd4+ {[%clk 0:00:07.3]} 1/2-1

[Event "Open Nuevo Centro. Jornada 1"]
[Site "Chess.com"]
[Date "2020.06.19"]
[Round "9"]
[White "Casado Andreu, David"]
[Black "Alegre Romaguera, Francesc"]
[Result "0-1"]
[WhiteElo "1553"]
[BlackElo "1300"]
[TimeControl "180+2"]
[EndTime "12:15:57 PDT"]
[Termination "Victoria de Francesc_08 por abandono"]

1. e4 {[%clk 0:03:00]} 1... c5 {[%clk 0:02:52.6]} 2. Nf3 {[%clk 0:03:01]} 2...
d6 {[%clk 0:02:41.8]} 3. d4 {[%clk 0:03:02]} 3... cxd4 {[%clk 0:02:41.4]} 4.
Nxd4 {[%clk 0:03:03.3]} 4... Nf6 {[%clk 0:02:42]} 5. Nc3 {[%clk 0:03:04.4]} 5...
a6 {[%clk 0:02:42.4]} 6. Bc4 {[%clk 0:03:05.6]} 6... e6 {[%clk 0:02:41.2]} 7.
Bb3 {[%clk 0:03:06.5]} 7... Be7 {[%clk 0:02:39.4]} 8. Be3 {[%clk 0:03:07.6]}
8... O-O {[%clk 0:02:39.5]} 9. O-O {[%clk 0:03:08.5]} 9... Nbd7 {[%clk 0:02:39]}
10. h3 {[%clk 0:03:09.1]} 10... Nc5 {[%clk 0:02:35.7]} 11. f3 {[%clk 0:02:55.2]}
11... b5 {[%clk 0:02:27.1]} 12. a4 {[%clk 0:02:48]} 12... Nxb3 {[%clk
0:02:16.4]} 13. Nxb3 {[%clk 0:02:48.6]} 13... b4 {[%clk 0:02:09.5]} 14. Na2
{[%clk 0:02:48.9]} 14... a5 {[%clk 0:02:07.3]} 15. c3 {[%clk 0:02:49.5]} 15...
d5 {[%clk 0:01:55.3]} 16. e5 {[%clk 0:02:46]} 16... Nd7 {[%clk 0:01:51.7]} 17.
f4 {[%clk 0:02:44.3]} 17... Bb7 {[%clk 0:01:46.5]} 18. Qd2 {[%clk 0:02:39.4]}
18... Nb6 {[%clk 0:01:44.6]} 19. Qf2 {[%clk 0:02:35.9]} 19... Nc4 {[%clk
0:01:42.1]} 20. Bc1 {[%clk 0:02:35.4]} 20... Qc7 {[%clk 0:01:30.1]} 21. Kh1
{[%clk 0:02:32.1]} 21... Ba6 {[%clk 0:01:25.1]} 22. Re1 {[%clk 0:02:21.4]} 22...
Rab8 {[%clk 0:01:20.9]} 23. f5 {[%clk 0:02:18]} 23... bxc3 {[%clk 0:01:19.7]}
24. bxc3 {[%clk 0:02:18.6]} 24... Rxb3 {[%clk 0:01:18.3]} 25. f6 {[%clk
0:02:17.4]} 25... Bc5 {[%clk 0:00:56]} 26. Qg3 {[%clk 0:02:18.1]} 26... g6
{[%clk 0:00:55.3]} 27. Qh4 {[%clk 0:02:18.5]} 27... Rfb8 {[%clk 0:00:51.9]} 28.
Qh6 {[%clk 0:02:16.3]} 28... Bf8 {[%clk 0:00:52]} 29. Qh4 {[%clk 0:02:16.4]}
29... Nxe5 {[%clk 0:00:47.9]} 30. Bh6 {[%clk 0:02:13.3]} 30... Nd3 {[%clk
0:00:19.7]} 31. Bxf8 {[%clk 0:02:10]} 31... Kxf8 {[%clk 0:00:20.1]} 32. Qh6+
{[%clk 0:02:11.2]} 32... Ke8 {[%clk 0:00:20.8]} 33. Re3 {[%clk 0:01:46.9]} 33...
Nf2+ {[%clk 0:00:20.1]} 34. Kg1 {[%clk 0:01:46]} 34... Ne4 {[%clk 0:00:19.9]}
35. Rae1 {[%clk 0:01:40.9]} 35... Rb1 {[%clk 0:00:19.6]} 36. Qxh7 {[%clk
0:01:20.7]} 36... Rxe1+ {[%clk 0:00:19.1]} 37. Rxe1 {[%clk 0:01:19.1]} 37...
Qc5+ {[%clk 0:00:18.8]} 38. Kh1 {[%clk 0:01:05.3]} 38... Nf2+ {[%clk 0:00:17.6]}
39. Kh2 {[%clk 0:01:06.3]} 39... Qf8 {[%clk 0:00:15.8]} 40. Qh4 {[%clk
0:01:03.4]} 40... Rb2 {[%clk 0:00:15.9]} 41. Nc1 {[%clk 0:01:00.3]} 41... Qd6+
{[%clk 0:00:16]} 42. Kg1 {[%clk 0:01:00.8]} 42... Ne4 {[%clk 0:00:15.7]} 43.
Qh8+ {[%clk 0:01:01.1]} 43... Qf8 {[%clk 0:00:16.3]} 44. Qh4 {[%clk 0:00:58.7]}
44... Rc2 {[%clk 0:00:12.7]} 45. Kh2 {[%clk 0:00:24.2]} 45... Rxc3 {[%clk
0:00:11.5]} 46. Rxe4 {[%clk 0:00:22.5]} 46... dxe4 {[%clk 0:00:09.8]} 47. Qxe4
{[%clk 0:00:23.8]} 47... Qd6+ {[%clk 0:00:10.5]} 48. g3 {[%clk 0:00:21.4]} 48...
Rxc1 {[%clk 0:00:09.4]} 49. Qa8+ {[%clk 0:00:20.6]} 49... Bc8 {[%clk 0:00:09.5]}
50. Qxa5 {[%clk 0:00:12.6]} 50... Rc2+ {[%clk 0:00:08.5]} 51. Kg1 {[%clk
0:00:12]} 51... Qd1+ {[%clk 0:00:09.4]} 0

[Event "Open Nuevo Centro. Jornada 1"]
[Site "Chess.com"]
[Date "2020.06.19"]
[Round "9"]
[White "Simarro Peir�, Andr�s"]
[Black "Valverde Alcaide, Miguel Alejandro"]
[Result "1-0"]
[WhiteElo "1084"]
[BlackElo "908"]
[TimeControl "180+2"]
[EndTime "12:15:57 PDT"]
[Termination "Victoria de AndresSP24 por tiempo"]

1. e4 {[%clk 0:03:01.9]} 1... e5 {[%clk 0:03:00.3]} 2. Nf3 {[%clk 0:02:58.5]}
2... Nc6 {[%clk 0:02:53.7]} 3. Nc3 {[%clk 0:02:57.9]} 3... Nf6 {[%clk
0:02:33.8]} 4. Bb5 {[%clk 0:02:55.9]} 4... Bc5 {[%clk 0:02:19.9]} 5. Bxc6 {[%clk
0:02:53.1]} 5... dxc6 {[%clk 0:02:17.1]} 6. d3 {[%clk 0:02:52.6]} 6... Qe7
{[%clk 0:02:12.7]} 7. O-O {[%clk 0:02:48.5]} 7... Ng4 {[%clk 0:01:55.2]} 8. h3
{[%clk 0:02:45.1]} 8... Nxf2 {[%clk 0:01:46.7]} 9. Rxf2 {[%clk 0:02:43.2]} 9...
Bxf2+ {[%clk 0:01:45.9]} 10. Kxf2 {[%clk 0:02:39.9]} 10... Qc5+ {[%clk
0:01:39.3]} 11. Be3 {[%clk 0:02:37.5]} 11... Qe7 {[%clk 0:01:31]} 12. d4 {[%clk
0:02:27.8]} 12... f6 {[%clk 0:01:22.6]} 13. d5 {[%clk 0:02:24.2]} 13... cxd5
{[%clk 0:01:22.8]} 14. Nxd5 {[%clk 0:02:21.6]} 14... Qd6 {[%clk 0:01:18.3]} 15.
b4 {[%clk 0:02:18.1]} 15... c6 {[%clk 0:01:14.2]} 16. Bc5 {[%clk 0:02:13.1]}
16... Qd7 {[%clk 0:01:06.5]} 17. Nc3 {[%clk 0:01:55.5]} 17... Qxd1 {[%clk
0:00:57]} 18. Rxd1 {[%clk 0:01:52]} 18... b6 {[%clk 0:00:57.3]} 19. Be3 {[%clk
0:00:56.4]} 19... O-O {[%clk 0:00:56.6]} 20. b5 {[%clk 0:00:54]} 20... c5 {[%clk
0:00:48.8]} 21. Nd5 {[%clk 0:00:53.2]} 21... Rb8 {[%clk 0:00:39.1]} 22. Ne7+
{[%clk 0:00:49]} 22... Kh8 {[%clk 0:00:37.4]} 23. Nc6 {[%clk 0:00:48.7]} 23...
Ra8 {[%clk 0:00:33.7]} 24. Rd8 {[%clk 0:00:45.5]} 24... Bb7 {[%clk 0:00:31.1]}
25. Rxf8+ {[%clk 0:00:45.2]} 25... Rxf8 {[%clk 0:00:30.9]} 26. Ne7 {[%clk
0:00:45.7]} 26... Rb8 {[%clk 0:00:21.6]} 27. Nf5 {[%clk 0:00:44.3]} 27... c4
{[%clk 0:00:19.7]} 28. Nd6 {[%clk 0:00:43.6]} 28... Rd8 {[%clk 0:00:18.2]} 29.
Nxc4 {[%clk 0:00:44.1]} 29... Rd1 {[%clk 0:00:16.7]} 30. a4 {[%clk 0:00:39.6]}
30... Ra1 {[%clk 0:00:14.7]} 31. Nd6 {[%clk 0:00:40.2]} 31... Rxa4 {[%clk
0:00:08.5]} 32. Nxb7 {[%clk 0:00:40.5]} 32... a6 {[%clk 0:00:09.4]} 33. bxa6
{[%clk 0:00:40.7]} 33... Rxa6 {[%clk 0:00:09.9]} 34. Nd6 {[%clk 0:00:41.9]}
34... Ra8 {[%clk 0:00:06.8]} 35. Nf7+ {[%clk 0:00:42.4]} 35... Kg8 {[%clk
0:00:06.8]} 36. Nd6 {[%clk 0:00:43.4]} 36... Ra2 {[%clk 0:00:07]} 37. Bxb6
{[%clk 0:00:42.9]} 37... Rxc2+ {[%clk 0:00:07.4]} 38. Kg3 {[%clk 0:00:43.6]}
38... Rc6 {[%clk 0:00:07.3]} 39. Nf5 {[%clk 0:00:32.5]} 39... Rxb6 {[%clk
0:00:07.8]} 40. Ne7+ {[%clk 0:00:33.5]} 40... Kh8 {[%clk 0:00:08]} 41. Nc8
{[%clk 0:00:32.3]} 41... Rb8 {[%clk 0:00:07.9]} 42. Nd6 {[%clk 0:00:32.4]} 42...
Rd8 {[%clk 0:00:08]} 43. Nf7+ {[%clk 0:00:33.3]} 43... Kg8 {[%clk 0:00:07.4]}
44. Nxd8 {[%clk 0:00:34.6]} 44... g5 {[%clk 0:00:07.8]} 45. h4 {[%clk
0:00:30.7]} 45... gxh4+ {[%clk 0:00:07.7]} 46. Nxh4 {[%clk 0:00:30.5]} 46... Kg7
{[%clk 0:00:08.6]} 47. Nf5+ {[%clk 0:00:29.1]} 47... Kg6 {[%clk 0:00:09.2]} 48.
Ne6 {[%clk 0:00:29.9]} 48... h6 {[%clk 0:00:08.1]} 49. Nf8+ {[%clk 0:00:30.7]}
49... Kg5 {[%clk 0:00:06.9]} 50. Nh7+ {[%clk 0:00:30.8]} 50... Kh5 {[%clk
0:00:06.1]} 51. Nxf6+ {[%clk 0:00:31.5]} 51... Kg6 {[%clk 0:00:05.8]} 52. Nd7
{[%clk 0:00:31]} 52... Kg5 {[%clk 0:00:04.6]} 53. Nxe5 {[%clk 0:00:31.4]} 53...
h5 {[%clk 0:00:04.1]} 54. Nf7+ {[%clk 0:00:31.3]} 54... Kg6 {[%clk 0:00:04.1]}
55. Nh8+ {[%clk 0:00:32.4]} 55... Kg5 {[%clk 0:00:04]} 56. e5 {[%clk 0:00:32.8]}
1